bitfinex/quotes_SOLUSD_20220128
["timestamp","ask_amount","ask_price","bid_price","bid_amount"]
[1643366288367,2.95669142,89.108,88.998,2.00024285]
[1643366288569,24.6197,89.107,88.998,2.00024285]
[1643366288766,24.6197,89.107,88.984,24.4795]
[1643366288767,16.17,89.1,88.97,16.17]
[1643366288969,113.03613357,89.099,88.97,16.17]
[1643366289168,1.53613357,89.095,88.97,16.17]
[1643366289370,1.53613357,89.094,88.97,16.17]
[1643366289571,1.53613357,89.087,88.97,16.17]
[1643366289969,16.17,89.09,88.943,111.9]
[1643366289970,2.95669142,89.086,88.943,111.9]
[1643366290172,1.53613357,89.075,88.937,10.52794235]
[1643366290372,1.53613357,89.067,88.919,45.3625]
[1643366290573,218.27,89.07,88.919,45.3625]
[1643366290574,1.53613357,89.059,88.919,45.3625]
[1643366290771,16.17,89.05,88.919,45.3625]
[1643366290973,48.8666,89.049,88.919,45.3625]
[1643366291172,111.5,89.048,88.919,45.3625]
[1643366291373,114.45669142,89.048,88.919,45.3625]
[1643366291573,131.34277302,89.048,88.919,45.3625]
[1643366291771,22.79946444,89.047,88.92,0.25]
[1643366292171,2.95669142,89.046,88.919,45.3625]
[1643366292375,34.07353546,89.046,88.91,16.17]
[1643366292574,34.07353546,89.046,88.92,6.0]
[1643366292775,34.07353546,89.045,88.92,6.0]
[1643366293174,34.07353546,89.044,88.92,6.0]
[1643366293404,16.17,89.04,88.92,6.0]
[1643366293601,39.81072662,89.039,88.92,6.25]
[1643366293804,23.7971,89.038,88.92,6.25]
[1643366294001,23.7971,89.038,88.921,6.0]
[1643366294202,26.75379142,89.038,88.921,6.0]
[1643366294505,40.87550786,89.037,88.921,6.0]
[1643366294802,32.30680586,89.036,88.921,6.0]
[1643366295002,61.21349444,89.036,88.896,23.4829]
[1643366295203,111.5,89.034,88.896,23.4829]
[1643366295405,16.17,89.02,88.872,24.5851]
[1643366295604,49.3468,89.019,88.872,24.5851]
[1643366295805,81.65360586,89.019,88.872,24.5851]
[1643366296006,18.07604342,89.018,88.872,24.5851]
[1643366296206,163.72831555,89.018,88.872,24.5851]
[1643366296408,14.23076244,89.017,88.872,24.5851]
[1643366296606,111.5,89.016,88.872,24.5851]
[1643366296807,163.72831555,89.016,88.872,24.5851]
[1643366297007,34.15227213,89.015,88.872,24.5851]
[1643366297407,34.15227213,89.014,88.872,24.5851]
[1643366297609,16.17,89.0,88.872,24.5851]
[1643366297807,111.5,88.998,88.872,24.5851]
[1643366298210,131.42150969,88.998,88.872,24.5851]
[1643366298410,21.03273484,88.997,88.872,24.5851]
[1643366298811,22.87820111,88.996,88.872,24.5851]
[1643366299114,2.95669142,88.996,88.882,6.0]
[1643366299311,45.75693631,88.999,88.9,16.17]
[1643366299511,45.75693631,88.999,88.91,6.0]
[1643366299710,45.75693631,88.999,88.9,16.42]
[1643366299911,45.75693631,88.999,88.9,16.17]
[1643366300311,2.95669142,88.998,88.9,16.42]
[1643366300911,2.95669142,88.998,88.9,16.17]
[1643366302422,114.45669142,88.998,88.9,16.17]
[1643366302714,114.45669142,88.998,88.9,16.42]
[1643366302919,2.95669142,88.997,88.9,16.42]
[1643366303614,2.95669142,88.997,88.9,0.25]
[1643366303816,23.9662,88.996,88.88,16.17]
[1643366304016,111.5,88.995,88.87,16.17]
[1643366304217,114.45669142,88.995,88.881,6.0]
[1643366304416,2.95669142,88.994,88.88,6.0]
[1643366304915,18.07338439,88.993,88.88,6.0]
[1643366305318,16.17,88.99,88.88,6.25]
[1643366305516,111.5,88.989,88.88,0.25]
[1643366305716,24.19,88.988,88.88,0.25]
[1643366305915,24.19,88.988,88.881,6.0]
[1643366305916,111.5,88.987,88.881,6.0]
[1643366306317,114.45669142,88.987,88.882,47.4088]
[1643366306518,2.95669142,88.986,88.882,47.4088]
[1643366309427,111.5,88.984,88.882,47.4088]
[1643366309823,2.95669142,88.983,88.882,47.4088]
[1643366311233,2.95669142,88.983,88.881,6.0]
[1643366311632,2.95669142,88.983,88.88,6.0]
[1643366311835,18.07338439,88.982,88.888,17.3220633]
[1643366312252,2.95669142,88.981,88.888,17.3220633]
[1643366312651,21.03007581,88.981,88.888,17.3220633]
[1643366313050,114.45669142,88.98,88.888,17.3220633]
[1643366313449,2.95669142,88.979,88.888,17.3220633]
[1643366315849,2.95669142,88.979,88.889,111.5]
[1643366316052,111.5,88.98,88.889,1.99485852]
[1643366316252,111.5,88.98,88.89,16.42]
[1643366316451,111.5,88.98,88.89,18.41485852]
[1643366316651,111.5,88.98,88.89,16.17]
[1643366317453,114.45669142,88.98,88.89,16.17]
[1643366317858,114.45669142,88.98,88.89,16.42]
[1643366318053,114.45669142,88.98,88.89,0.25]
[1643366318256,114.45669142,88.98,88.888,17.3220633]
[1643366321053,114.45669142,88.98,88.898,6.0]
[1643366322253,111.5,88.98,88.898,6.0]
[1643366322457,111.5,88.98,88.899,24.6769]
[1643366322654,23.6034,88.985,88.899,26.67175852]
[1643366322853,2.95669142,89.004,88.9,2.24485852]
[1643366322854,1.53613357,88.996,88.9,2.24485852]
[1643366323056,1.53613357,89.0,88.91,6.0]
[1643366323256,1.53613357,89.001,88.911,24.7934]
[1643366323455,47.29306988,88.999,88.911,24.7934]
[1643366323655,45.75693631,88.999,88.921,6.0]
[1643366324256,45.75693631,88.999,88.922,6.0]
[1643366324455,48.71362773,88.999,88.921,6.0]
[1643366324654,50.2497613,88.999,88.921,6.0]
[1643366325058,50.2497613,88.999,88.92,0.25]
[1643366325059,48.71362773,88.999,88.92,0.25]
[1643366325656,45.75693631,88.999,88.92,0.25]
[1643366325858,45.75693631,88.999,88.911,24.7934]
[1643366326459,1.53613357,89.004,88.911,24.7934]
[1643366326659,1.53613357,89.004,88.901,93.88055466]
[1643366326860,1.53613357,89.003,88.92,16.17]
[1643366327161,2.95669142,89.024,88.921,93.88055466]
[1643366327359,2.95669142,89.024,88.921,141.70315466]
[1643366327562,36.36997228,89.023,88.921,141.70315466]
[1643366327964,2.95669142,89.022,88.921,141.70315466]
[1643366328464,3.0780142,89.021,88.921,141.70315466]
[1643366328863,2.95669142,89.02,88.921,141.70315466]
[1643366329466,2.95669142,89.02,88.932,93.88055466]
[1643366329665,2.95669142,89.02,88.933,23.7324]
[1643366330265,3.20669142,89.02,88.933,23.7324]
[1643366330866,2.95669142,89.019,88.933,23.7324]
[1643366332165,3.07891147,89.018,88.933,23.7324]
[1643366332366,114.57891147,89.018,88.933,23.7324]
[1643366332569,111.5,89.016,88.933,23.7324]
[1643366332866,21.66693137,89.015,88.933,23.7324]
[1643366333267,133.16693137,89.014,88.933,23.7324]
[1643366333767,21.66693137,89.013,88.933,23.7324]
[1643366334166,21.66693137,89.012,88.933,23.7324]
[1643366334567,21.66693137,89.011,88.933,23.7324]
[1643366334968,90.84704016,89.01,88.902,0.07322322]
[1643366335170,3.07950866,89.009,88.902,0.07322322]
[1643366335370,3.08128729,88.998,88.902,0.07322322]
[1643366335568,16.17,88.99,88.902,0.07322322]
[1643366335772,46.35592552,88.988,88.902,0.07322322]
[1643366335969,3.07950866,88.987,88.902,0.07322322]
[1643366336170,24.74644003,88.987,88.902,0.07322322]
[1643366336468,133.16693137,88.986,88.902,0.07322322]
[1643366336871,111.5,88.984,88.902,0.07322322]
[1643366337271,21.66693137,88.983,88.902,0.07322322]
[1643366337474,40.54921723,88.983,88.902,0.07322322]
[1643366337675,111.5,88.981,88.902,0.07322322]
[1643366338072,111.5,88.979,88.902,0.07322322]
[1643366338479,21.91693137,88.978,88.902,0.07322322]
[1643366338876,21.66693137,88.977,88.902,0.07322322]
[1643366339277,133.16693137,88.976,88.902,0.07322322]
[1643366339479,16.17,88.97,88.902,0.07322322]
[1643366339680,111.5,88.969,88.902,0.07322322]
[1643366339879,130.21023995,88.969,88.902,0.07322322]
[1643366340079,163.31894238,88.969,88.902,0.07322322]
[1643366340281,40.54921723,88.968,88.902,0.07322322]
[1643366340479,111.5,88.967,88.902,0.07322322]
[1643366340678,163.37910349,88.967,88.902,0.07322322]
[1643366340881,163.37910349,88.967,88.888,0.0444633]
[1643366340882,40.60937834,88.966,88.888,0.0444633]
[1643366341079,3.0727159,88.965,88.888,0.0444633]
[1643366341280,3.08128729,88.956,88.888,0.0444633]
[1643366341480,16.17,88.95,88.888,0.0444633]
[1643366341679,3.0727159,88.949,88.888,0.0444633]
[1643366341878,125.84244105,88.949,88.888,0.0444633]
[1643366342081,111.5,88.947,88.888,0.0444633]
[1643366342282,3.0727159,88.946,88.888,0.0444633]
[1643366342484,111.5,88.945,88.888,0.0444633]
[1643366342682,16.17,88.93,88.888,0.0444633]
[1643366342885,46.22955078,88.928,88.888,0.0444633]
[1643366343088,111.5,88.927,88.888,0.0444633]
[1643366343282,114.45669142,88.927,88.888,0.0444633]
[1643366343482,49.48519142,88.926,88.888,0.0444633]
[1643366344083,2.95669142,88.925,88.888,0.0044633]
[1643366344283,114.45669142,88.925,88.888,0.0044633]
[1643366344685,2.95669142,88.924,88.888,0.0044633]
[1643366344885,2.95669142,88.924,88.821,6.0]
[1643366344886,2.95669142,88.924,88.822,109.0044633]
[1643366345086,18.94244697,88.944,88.853,1.99485852]
[1643366345287,21.66693137,88.948,88.853,1.99485852]
[1643366345288,18.71023995,88.948,88.853,1.99485852]
[1643366345489,18.71023995,88.948,88.841,48.3466]
[1643366345687,2.95669142,88.943,88.841,48.3466]
[1643366346106,36.42329404,88.942,88.841,48.3466]
[1643366346306,36.42329404,88.942,88.842,0.25]
[1643366346506,36.42329404,88.942,88.842,2.24562514]
[1643366346706,36.42329404,88.942,88.842,1.99562514]
[1643366346908,36.42329404,88.942,88.841,48.3466]
[1643366347106,2.95669142,88.941,88.841,48.3466]
[1643366347311,36.42329404,88.942,88.842,2.24562514]
[1643366347706,39.37998546,88.942,88.843,1.99562514]
[1643366347908,39.37998546,88.942,88.844,0.25]
[1643366348111,36.42329404,88.942,88.843,1.99562514]
[1643366348307,133.16693137,88.941,88.841,48.3466]
[1643366348807,36.42329404,88.942,88.81,16.17]
[1643366348808,111.5,88.939,88.81,16.17]
[1643366349106,18.71023995,88.938,88.8,16.17]
[1643366349307,40.66600778,88.938,88.801,22.7443]
[1643366349507,2.95669142,88.937,88.81,6.0]
[1643366349706,40.91600778,88.937,88.811,6.0]
[1643366349907,172.56011636,88.936,88.812,22.9474]
[1643366350109,175.51680778,88.936,88.812,22.9474]
[1643366350309,37.70931636,88.935,88.812,22.9474]
[1643366350505,50.88271848,88.935,88.813,23.0619]
[1643366350708,152.21747334,88.934,88.813,23.0619]
[1643366350907,16.17,88.92,88.813,23.0619]
[1643366351107,111.5,88.918,88.813,23.0619]
[1643366351709,21.66693137,88.917,88.813,23.0619]
[1643366352108,133.16693137,88.916,88.813,23.0619]
[1643366352308,35.85841812,88.915,88.813,23.0619]
[1643366352512,57.52534949,88.915,88.813,23.0619]
[1643366352710,111.5,88.913,88.813,23.0619]
[1643366353109,2.95669142,88.912,88.813,23.0619]
[1643366353511,111.5,88.91,88.813,23.0619]
[1643366353912,2.95669142,88.909,88.813,23.0619]
[1643366354110,23.6423,88.908,88.813,23.0619]
[1643366354512,23.6423,88.908,88.814,0.25]
[1643366354912,18.71023995,88.913,88.814,0.25]
[1643366355113,16.17,88.93,88.814,0.25]
[1643366355513,111.5,88.924,88.814,0.25]
[1643366355914,2.95669142,88.937,88.814,0.25]
[1643366356113,2.95669142,88.947,88.815,1.99807594]
[1643366356311,2.95669142,88.947,88.823,6.0]
[1643366356513,111.5,88.944,88.83,16.17]
[1643366356911,111.5,88.944,88.831,0.25]
[1643366357112,0.25,88.914,88.831,0.25]
[1643366357514,23.0096,88.943,88.831,0.25]
[1643366358516,111.5,88.942,88.831,0.25]
[1643366359515,23.0096,88.943,88.832,1.99807594]
[1643366359917,23.0096,88.943,88.831,0.25]
[1643366360217,111.5,88.942,88.825,0.25]
[1643366360415,111.5,88.942,88.83,16.17]
[1643366360815,0.25,88.914,88.831,0.25]
[1643366362016,111.5,88.942,88.831,0.25]
[1643366363419,2.95669142,88.914,88.831,0.25]
[1643366363619,2.95669142,88.914,88.824,24.3048]
[1643366363818,23.9603,88.913,88.824,24.3048]
[1643366364220,2.95669142,88.912,88.8,16.17]
[1643366364418,114.70669142,88.912,88.79,16.17]
[1643366364619,3.20669142,88.912,88.791,111.5]
[1643366364820,15.03798459,88.911,88.79,16.17]
[1643366365019,3.20669142,88.912,88.79,16.17]
[1643366365220,23.9603,88.913,88.823,6.0]
[1643366365520,23.9603,88.913,88.824,29.9408]
[1643366365720,23.9603,88.913,88.824,23.9408]
[1643366367122,23.9603,88.913,88.825,0.25]
[1643366367323,2.95669142,88.912,88.825,0.25]
[1643366368124,0.25,88.911,88.825,0.25]
[1643366369025,0.25,88.911,88.824,23.9408]
[1643366369223,3.07280652,88.91,88.824,23.9408]
[1643366369823,2.95669142,88.909,88.79,16.17]
[1643366370125,114.58128729,88.908,88.791,22.5556]
[1643366370323,6.15409381,88.907,88.791,22.5556]
[1643366370523,9.11078523,88.907,88.791,22.5556]
[1643366370724,3.07280652,88.906,88.791,22.5556]
[1643366370925,117.52949794,88.906,88.791,22.5556]
[1643366371129,15.77324814,88.905,88.791,22.5556]
[1643366371326,18.84605466,88.905,88.791,22.5556]
[1643366371526,3.08128729,88.901,88.791,22.5556]
[1643366371726,16.17,88.9,88.791,22.5556]
[1643366371926,30.90639381,88.899,88.791,22.5556]
[1643366372125,114.57280652,88.898,88.791,22.5556]
[1643366372325,3.07280652,88.897,88.791,22.5556]
[1643366372725,15.77324814,88.896,88.791,22.5556]
[1643366372928,111.5,88.895,88.791,22.5556]
[1643366373125,124.31655672,88.895,88.791,22.5556]
[1643366373325,0.25,88.894,88.791,22.5556]
[1643366373526,3.20669142,88.894,88.791,22.5556]
[1643366373727,6.02402065,88.893,88.791,22.5556]
[1643366373928,111.5,88.892,88.791,22.5556]
[1643366374128,114.45669142,88.892,88.791,22.5556]
[1643366374328,3.06496059,88.891,88.791,22.5556]
[1643366374526,111.5,88.89,88.791,22.5556]
[1643366374727,114.45669142,88.89,88.791,22.5556]
[1643366375126,41.32219393,88.888,88.791,22.5556]
[1643366375329,111.5,88.887,88.791,22.5556]
[1643366375528,23.6121,88.886,88.791,22.5556]
[1643366375733,111.5,88.885,88.791,22.5556]
[1643366376128,24.9996,88.884,88.791,22.5556]
[1643366376332,111.5,88.883,88.791,22.5556]
[1643366376730,114.45669142,88.883,88.791,22.5556]
[1643366377029,2.95669142,88.882,88.791,22.5556]
[1643366378138,16.17,88.88,88.75,16.17]
[1643366378338,3.06488339,88.879,88.751,45.7072]
[1643366378631,17.58157481,88.879,88.767,6.0]
[1643366378833,126.78369259,88.878,88.768,22.503]
[1643366379332,2.95669142,88.877,88.768,22.503]
[1643366379633,2.95669142,88.877,88.768,24.50107594]
[1643366379931,2.95669142,88.877,88.768,22.503]
[1643366380332,2.95669142,88.877,88.769,0.25]
[1643366380933,2.95669142,88.877,88.768,22.503]
[1643366380934,12.07700117,88.876,88.768,22.503]
[1643366381132,111.5,88.875,88.768,22.503]
[1643366381335,111.5,88.873,88.768,22.503]
[1643366381532,16.17,88.87,88.768,22.503]
[1643366381735,111.5,88.869,88.768,22.503]
[1643366382133,2.95669142,88.868,88.768,22.503]
[1643366382532,0.25,88.867,88.768,22.503]
[1643366382932,2.95669142,88.866,88.769,0.25]
[1643366383337,16.27158331,88.865,88.769,0.25]
[1643366383535,111.5,88.864,88.769,0.25]
[1643366383733,114.45669142,88.864,88.769,0.25]
[1643366383937,2.95669142,88.863,88.769,0.25]
[1643366384337,111.5,88.859,88.769,0.25]
[1643366386739,111.5,88.859,88.769,2.24807594]
[1643366387465,2.95669142,88.858,88.768,22.503]
[1643366388566,16.27158331,88.857,88.739,1.99807594]
[1643366388765,16.17,88.85,88.72,16.17]
[1643366389268,111.5,88.848,88.709,47.0226]
[1643366389668,111.5,88.846,88.709,47.0226]
[1643366389866,3.05983839,88.845,88.709,47.0226]
[1643366390167,44.41088821,88.829,88.709,47.0226]
[1643366390468,111.5,88.828,88.709,47.0226]
[1643366390681,142.83746534,88.828,88.709,47.0226]
[1643366390865,54.05786534,88.827,88.709,47.0226]
[1643366391266,31.33746534,88.826,88.709,47.0226]
[1643366391667,31.33746534,88.825,88.709,47.0226]
[1643366392068,15.06588203,88.824,88.709,47.0226]
[1643366392266,16.17,88.82,88.709,47.0226]
[1643366392470,16.17,88.82,88.72,2.00615098]
[1643366393768,0.25,88.819,88.721,0.25]
[1643366393968,0.25,88.819,88.721,24.4941]
[1643366394168,0.25,88.819,88.722,2.00615098]
[1643366394370,0.25,88.822,88.723,0.25]
[1643366394568,0.25,88.822,88.721,24.4941]
[1643366394767,111.5,88.82,88.721,24.4941]
[1643366395167,16.27158331,88.819,88.721,24.4941]
[1643366395367,19.22827473,88.819,88.721,24.2441]
[1643366395568,31.33746534,88.819,88.721,24.2441]
[1643366395767,43.27707473,88.818,88.721,24.2441]
[1643366395968,111.5,88.817,88.721,24.2441]
[1643366397378,2.95669142,88.816,88.721,24.2441]
[1643366397771,111.5,88.845,88.722,113.75615098]
[1643366398070,24.379,88.844,88.722,111.75]
[1643366398269,24.379,88.844,88.723,13.37162899]
[1643366398670,24.379,88.844,88.724,2.25615098]
[1643366399071,24.379,88.844,88.725,2.00615098]
[1643366399270,24.379,88.844,88.721,24.2441]
[1643366399477,25.67709142,88.827,88.721,24.2441]
[1643366399673,111.5,88.826,88.721,24.2441]
[1643366399872,135.463,88.826,88.721,24.2441]
[1643366400076,2.95669142,88.825,88.7,16.17]
[1643366400477,2.95669142,88.825,88.701,24.5758]
[1643366400975,0.25,88.824,88.701,24.5758]
[1643366401476,2.95669142,88.823,88.701,24.5758]
[1643366402077,2.95669142,88.823,88.71,111.5]
[1643366402276,0.25,88.824,88.71,129.92615098]
[1643366402476,0.25,88.824,88.711,2.00615098]
[1643366402777,0.25,88.824,88.712,111.75]
[1643366402979,0.25,88.824,88.712,145.92465357]
[1643366403178,0.25,88.824,88.713,2.00615098]
[1643366403376,0.25,88.824,88.714,111.75]
[1643366403577,0.25,88.824,88.714,123.05865357]
[1643366403779,23.963,88.826,88.715,13.27410732]
[1643366403978,23.963,88.826,88.73,16.17]
[1643366404279,23.963,88.826,88.731,24.6314]
[1643366404584,111.5,88.845,88.731,26.63755098]
[1643366404777,23.732,88.86,88.735,111.9]
[1643366404978,3.08128729,88.876,88.747,0.32303742]
[1643366405178,3.08128729,88.888,88.76,16.17]
[1643366405379,3.08128729,88.893,88.761,46.5845]
[1643366405579,3.08128729,88.895,88.771,6.0]
[1643366405779,36.44998018,88.878,88.78,16.17]
[1643366406179,0.25,88.877,88.781,0.25]
[1643366406383,0.25,88.877,88.781,2.25615098]
[1643366406581,0.25,88.877,88.781,113.75615098]
[1643366406780,0.25,88.877,88.782,2.00615098]
[1643366407185,0.25,88.877,88.783,23.5962]
[1643366407382,36.44998018,88.878,88.783,34.86415634]
[1643366407583,15.32679408,88.879,88.794,111.5]
[1643366407783,3.08128729,88.923,88.806,0.30032209]
[1643366407982,4.59168572,88.948,88.806,0.30032209]
[1643366407983,3.08128729,88.945,88.82,16.17]
[1643366408182,3.08128729,88.953,88.834,0.3126867]
[1643366408383,3.08128729,88.964,88.84,16.17]
[1643366408582,41.60850589,88.952,88.85,6.0]
[1643366408783,41.60850589,88.952,88.86,16.17]
[1643366409183,41.60850589,88.952,88.861,2.25615098]
[1643366409586,41.60850589,88.952,88.862,2.00615098]
[1643366409787,41.60850589,88.952,88.863,0.25]
[1643366410188,41.60850589,88.952,88.864,2.00615098]
[1643366410386,41.60850589,88.952,88.865,0.25]
[1643366410786,41.60850589,88.952,88.866,2.00615098]
[1643366410986,41.60850589,88.952,88.87,16.17]
[1643366411388,41.60850589,88.952,88.871,2.25615098]
[1643366411888,41.60850589,88.952,88.872,2.00615098]
[1643366412086,2.95669142,88.987,88.872,2.00615098]
[1643366412288,2.95669142,88.987,88.873,0.25]
[1643366412486,3.08128729,89.001,88.873,18.6722734]
[1643366412686,6.11572223,89.012,88.882,6.0]
[1643366412886,3.03443494,89.012,88.89,16.17]
[1643366413087,45.14432311,89.011,88.9,22.17]
[1643366413285,45.14432311,89.011,88.91,16.17]
[1643366413685,45.14432311,89.011,88.911,0.25]
[1643366413888,45.14432311,89.011,88.911,2.25615098]
[1643366414086,2.95669142,89.01,88.911,2.25615098]
[1643366414287,2.95669142,89.01,88.911,0.25]
[1643366414989,2.95669142,89.01,88.91,16.17]
[1643366415187,45.14432311,89.011,88.912,2.00615098]
[1643366415389,45.14432311,89.011,88.92,6.0]
[1643366415587,45.14432311,89.011,88.922,6.0]
[1643366416187,45.14432311,89.011,88.923,0.25]
[1643366416188,2.95669142,89.01,88.923,0.25]
[1643366416388,2.95669142,89.01,88.92,16.17]
[1643366417492,0.25,89.009,88.92,16.17]
[1643366417891,2.95669142,89.008,88.92,16.17]
[1643366418592,2.95669142,89.008,88.9,16.17]
[1643366418794,2.95669142,89.008,88.892,24.9195]
[1643366418995,45.14432311,89.011,88.9,16.17]
[1643366418996,15.71628773,89.007,88.9,16.17]
[1643366419194,45.14432311,89.011,88.9,16.17]
[1643366419394,45.14432311,89.011,88.901,0.25]
[1643366419598,45.14432311,89.011,88.901,13.66524529]
[1643366419792,45.14432311,89.011,88.902,20.41734549]
[1643366419997,45.14432311,89.011,88.912,6.0]
[1643366420195,45.14432311,89.011,88.92,16.17]
[1643366420393,45.14432311,89.011,88.921,0.25]
[1643366420595,0.25,89.01,88.93,6.0]
[1643366420820,0.25,89.01,88.931,0.25]
[1643366421598,45.14432311,89.011,88.931,0.25]
[1643366423698,47.9097,89.069,88.931,0.25]
[1643366423899,47.9097,89.069,88.931,23.5175]
[1643366424198,47.9097,89.069,88.941,6.0]
[1643366424399,47.9097,89.069,88.95,16.17]
[1643366424604,2.95669142,89.068,88.96,6.0]
[1643366424804,37.63855391,89.067,88.961,0.25]
[1643366425010,37.63855391,89.067,88.961,6.25]
[1643366425305,37.63855391,89.067,88.961,8.25615098]
[1643366425505,37.63855391,89.067,88.962,2.00615098]
[1643366425905,37.63855391,89.067,88.972,6.0]
[1643366426108,37.63855391,89.067,88.98,16.17]
[1643366426309,91.43109686,89.11,88.982,0.32179399]
[1643366426612,91.43109686,89.11,89.008,0.31373611]
[1643366426808,91.43109686,89.11,89.02,16.16930086]
[1643366427011,91.43109686,89.11,89.03,6.0]
[1643366427211,37.81873418,89.138,89.03,22.17]
[1643366427412,37.81873418,89.138,89.031,0.25]
[1643366427713,37.81873418,89.138,89.032,111.5]
[1643366427911,37.81873418,89.138,89.033,0.25]
[1643366428110,37.81873418,89.138,89.042,6.0]
[1643366428336,37.81873418,89.138,89.05,16.17]
[1643366428537,3.08128729,89.18,89.06,6.0]
[1643366428736,3.00980317,89.184,89.07,16.17]
[1643366429139,24.9886,89.185,89.08,6.0]
[1643366429337,24.9886,89.185,89.09,16.17]
[1643366429540,47.01141088,89.184,89.1,6.0]
[1643366429744,27.12588729,89.221,89.11,16.17]
[1643366429938,24.0446,89.221,89.11,16.17]
[1643366430138,3.08128729,89.229,89.12,6.0]
[1643366430339,3.08128729,89.239,89.121,0.25]
[1643366430737,38.43735064,89.238,89.121,0.25]
[1643366430937,3.00214455,89.237,89.121,0.25]
[1643366431138,5.95883597,89.237,89.121,0.25]
[1643366431439,3.00214455,89.236,89.121,0.25]
[1643366431837,2.95669142,89.235,89.121,0.25]
[1643366432036,2.95669142,89.235,89.12,16.17]
[1643366432437,24.11036291,89.234,89.092,24.3517]
[1643366432636,2.99773948,89.233,89.1,16.17]
[1643366432840,33.3960811,89.233,89.1,16.17]
[1643366433041,111.5,89.219,89.08,16.17]
[1643366433238,111.5,89.219,89.06,16.17]
[1643366433239,2.99773948,89.218,89.06,16.17]
[1643366433438,3.08128729,89.215,89.06,16.17]
[1643366433639,6.07902677,89.216,89.06,16.17]
[1643366433838,3.08128729,89.215,89.06,16.17]
[1643366434042,13.34072489,89.214,89.07,6.0]
[1643366434340,24.8422,89.217,89.07,6.0]
[1643366434341,24.8422,89.217,89.071,20.05052618]
[1643366434541,2.95669142,89.213,89.081,6.0]
[1643366434940,2.95669142,89.213,89.09,6.0]
[1643366435139,2.95669142,89.213,89.1,13.47]
[1643366435342,2.95669142,89.213,89.101,0.25]
[1643366435540,2.95669142,89.213,89.11,6.0]
[1643366435839,24.8422,89.217,89.111,0.25]
[1643366436041,24.8422,89.217,89.112,6.0]
[1643366436239,24.8422,89.217,89.111,2.25604089]
[1643366436439,2.95669142,89.216,89.121,6.0]
[1643366436639,2.95669142,89.216,89.111,6.0]
[1643366436839,0.25,89.215,89.111,6.25]
[1643366437039,0.25,89.215,89.12,6.0]
[1643366437242,2.95669142,89.214,89.11,13.47]
[1643366438740,13.36308489,89.214,89.11,13.47]
[1643366439141,2.95669142,89.213,89.11,13.47]
[1643366439542,35.0745929,89.211,89.11,13.47]
[1643366439742,111.5,89.21,89.11,13.47]
[1643366439942,114.45669142,89.21,89.11,13.47]
[1643366440146,2.95669142,89.209,89.11,13.47]
[1643366440645,0.25,89.208,89.11,13.47]
[1643366441045,2.95669142,89.207,89.11,13.47]
[1643366441444,2.95669142,89.207,89.111,0.25]
[1643366443146,2.95669142,89.207,89.11,13.47]
[1643366443947,2.95669142,89.207,89.111,0.25]
[1643366444748,2.95669142,89.207,89.11,13.47]
[1643366444948,2.95669142,89.207,89.09,13.47]
[1643366445152,13.391266,89.207,89.09,13.47]
[1643366445450,111.75,89.206,89.091,0.25]
[1643366445649,3.01486657,89.205,89.091,0.25]
[1643366445948,16.40613257,89.205,89.091,0.25]
[1643366446148,2.95669142,89.204,89.091,0.25]
[1643366446348,3.01486657,89.203,89.091,0.25]
[1643366446548,2.95669142,89.204,89.091,0.25]
[1643366446750,2.95669142,89.202,89.091,0.25]
[1643366446951,1.50760503,89.189,89.091,0.25]
[1643366447350,1.50760503,89.183,89.091,0.25]
[1643366447551,47.33891091,89.182,89.091,0.25]
[1643366447754,47.33891091,89.182,89.09,13.47]
[1643366447755,1.50760503,89.179,89.09,13.47]